{"text_format":"2","workbook":"xlsx","n_sheets":2,"sheets":["Modulok","Felolvasólap"],"not_rendered":{"charts":0,"images":0,"macros":0,"external_links":0,"defined_names":0,"comments":0,"pivot_tables":0},"unopened":[],"bounds":{"document_bytes":16777216,"sheet_cells":100000,"run_cost":"one","rows_first":2000,"rows_last":500,"rows_between":2000,"halvings":0,"cell_chars":16384,"cell_head_chars":4096},"cells_cut":0,"cells_raw":0,"read":"whole","date_system":"1900"}

{"sheet":"Modulok","index":0,"n_rows":65,"n_cols":6,"rows_kept":65,"cut":false,"hidden":false,"merged":[[0,0,0,3],[63,0,63,1],[64,0,64,1]]}
[]
[null,"modul megnevezése","nettó bevezetési díj","nettó havidíj","36 havi nettó díj","modulonként összesen:"]
["1.","Betegnyilvántartó modul",null,null,{"$f":"D3*36","v":0},{"$f":"C3+E3","v":0}]
["2.","On-line TAJ ellenőrzés",null,null,{"$f":"D4*36","v":0},{"$f":"C4+E4","v":0}]
["3.","VIP funkció (személytitkosítás)",null,null,0,0]
["4.","Ambuláns ellátás modulja (előjegyzési és on-line vizsgálatkérési modul)",null,null,0,0]
["5.","Fekvőbeteg ellátás modulja (előjegyzési és on-line vizsgálatkérési modul)",null,null,0,0]
["6.","Rehabilitációs modul",null,null,0,0]
["7.","Kúraszerű ellátás modul",null,null,0,0]
["8.","Gyógyszerelési modul (receptírás, gyógyszerelés, gyógyászati segédeszközök, stb...) ",null,null,0,0]
["9.","Művese modul",null,null,0,0]
["10.","Krónikus modul",null,null,0,0]
["11.","Diagnosztika modul(RTG, UH, CT,MRI, DSA, mammográfia, endoszkópia, laboratórium, mikrobiológia)",null,null,0,0]
["12.","Patológia modul (boncolás, aspirációs citológia, hisztológia, citológia, mintakezelő felület)",null,null,0,0]
["13.","Ápolási modul",null,null,0,0]
["14.","Táppénz modul",null,null,0,0]
["15.","Integrált on-line várólista kezelő modul",null,null,0,0]
["16.","OBP",null,null,0,0]
["17.","betegszállítás modul",null,null,0,0]
["18.","Műtéti modul (anyagfelhasználás, műtéti dokumentáció, gyógyszerfelhasználás, előjegyzés )",null,null,0,0]
["19.","Aneszteziológiai modul",null,null,0,0]
["20.","Gyógyszertári rendszer osztályos modulja",null,null,0,0]
["21.","Betegszintű gyógyszerelés modul ( tételes elszámolású gyógyszerek)",null,null,0,0]
["22.","Laboratóriumi rendszer modul",null,null,0,0]
["22.","Labor előjegyzés",null,null,0,0]
["22.","archiváló funkció",null,null,0,0]
["22.","Labor rendszer Kommunikációs funkció (a leletek ütemezett, automatikus továbbítást biztosító funkció)",null,null,0,0]
["23.","Mikrobiológiai rendszer",null,null,0,0]
["23.","Bakteriológiai modul ",null,null,0,0]
["23.","Szerológiai és molekuláris diagnosztikai modul",null,null,0,0]
["23.","Fág és molekuláris tipizáló modul",null,null,0,0]
["23.","Betegfelvételi és minta irányító funkció",null,null,0,0]
["23.","Higiénés és infekciókontroll funkció",null,null,0,0]
["23.","Vonalkód generáló és nyomtató funkció",null,null,0,0]
["23.","EFRIR, OSZIR funkció",null,null,0,0]
["23.","Automata illesztési funkció",null,null,0,0]
["24.","Kommunikációs modul (a leletek ütemezett, automatikus továbbítását biztosító modul)",null,null,0,0]
["25.","Foglalkozás egészségügyi modul",null,null,0,0]
["26.","EFI modul (egészségfejlesztési teendők informatikai támogatása)",null,null,0,0]
["27.","SBO modul (sürgősségi betegellátás támogatása) Triage",null,null,0,0]
["27.","Betegtájékoztató funkció",null,null,0,0]
["27.","Orvostájékoztató funkció",null,null,0,0]
["28.","Onkoteam menedzser",null,null,0,0]
["29.","Orvosbejelentő modul",null,null,0,0]
["30.","Háziorvosi modul",null,null,0,0]
["31.","Beszédfelismerő modul",null,null,0,0]
["32.","Interfészmodulok / Illesztések",null,null,0,0]
["32.","Gyógyszertári rendszer illesztés oda-vissza irányú kommunikáció online gyógyszeradagolás lehetőségének biztosítása",null,null,0,0]
["32.","Betegágy melletti vércukor és vérgáz mérés interfészmodul (ROCHE, RADIOMETER)",null,null,0,0]
["32.","GlobalSpeech alkalmazás (SpeechMagic)",null,null,0,0]
["32.","Traceline interfészmodul (OVSZ)",null,null,0,0]
["32.","CATO rendszer interfészmodul ",null,null,0,0]
["32.","PIC speciális alkalmazás medikai rendszer oldali interfészmodul ",null,null,0,0]
["32.","Betegbehívó rendszer interfészmodul (MULTIMEX)",null,null,0,0]
["32.","HL7 (vizsgálatkérés, eredményküldés) MedBakter oldali interfészmodul",null,null,0,0]
["32.","VARIAN HL7 interfészmodul",null,null,0,0]
["32.","Frezenius modul",null,null,0,0]
["32.","Erad PACS - medikai rendszer interfész modul",null,null,0,0]
["32.","GE PACS",null,null,0,0]
["32.","Triage",null,null,0,0]
["33.","10 új, opciós munkaállomás nettó havi díja (MedSolution)","nem releváns ",null,0,{"$f":"D61+E61","v":0}]
["34.","1 új, opciós munkaállomás nettó havi díja (GLIMS)","nem releváns ",null,0,{"$f":"D62+E62","v":0}]
["35.","személyes tanácsadás (1 mérnöknap) nettó napidíja ","nem releváns ",null,0,0]
["Összesen nettó: ",null,{"$f":"SUM(C3:C63)","v":0},{"$f":"SUM(D3:D63)","v":0},{"$f":"SUM(E3:E63)","v":0},{"$f":"SUM(F3:F63)","v":0}]
["Összesen bruttó (nettó+27% ÁFA):",null,{"$f":"C64*1.27","v":0},{"$f":"D64*1.27","v":0},0,{"$f":"F64*1.27","v":0}]

{"sheet":"Felolvasólap","index":1,"n_rows":19,"n_cols":5,"rows_kept":19,"cut":false,"hidden":false,"merged":[[18,0,18,3],[11,0,12,1],[0,0,0,4],[1,0,1,4],[10,0,10,4],[15,0,15,4],[16,0,16,3],[17,0,17,3]]}
["Felolvasólap"]
["Alulírott Ajánlattevő, az ajánlattételi felhívás részletes áttanulmányozását követően, annak feltételeit elfogadva, az alábbi ajánlatot teszem a Szegedi Tudományegyetem által indított „A SZTE SZAKK által jelenleg is alkalmazott egészségügyi informatikai rendszerek (e-MedSolution/GLIMS) üzemeltetésének támogatása, karbantartása, jogszabálykövetése és ehhez szorosan kapcsolódó szolgáltatások megrendelése” tárgyú közbeszerzési eljárásban:"]
[null,"Ajánlattevő neve:"]
[null,"Székhelye:"]
[null,"Képviselő neve:"]
[null,"Adószáma:"]
[null,"Cégjegyzékszáma:"]
[null,"Bankszámlaszáma:"]
[null,"Kapcsolattartó neve, elérhetősége:"]
[]
["Ajánlati ár Ft-ban (36 hónapra)*"]
["32 modul bevezetése 2000 munkaállomásra, valamint 36 hónapra vonatkozó havi díja, havi tanácsadási díja és 10 +1 opciós munkaállomás díja ",null,"Nettó ár","ÁFA mértéke","Bruttó ár"]
[null,null,{"$f":"Modulok!F64","v":0},0.27,{"$f":"Modulok!F65","v":0}]
[]
[]
["*Ajánlattevőnek árfolyamkockázattól mentes, fix árajánlatot kell adnia magyar Forintban!\n\nAjánlatom …….… számozott oldalt tartalmaz."]
["Kelt: …………………….., 2017. ………………… …..      "]
["……………………………………………."]
["ajánlattevő cégszerű aláírása"]